{"text_format":"1","workbook":"xlsx","n_sheets":10,"sheets":["Guidance","Goal 1","Goal 1 Mid Year","Goal 2","Goal 2 Mid Year  ","Goal 3","Goal 3 Mid Year  ","narrative sections","checklist","executive summary"],"not_rendered":{"charts":0,"images":2,"macros":1,"external_links":1,"defined_names":3,"comments":3,"pivot_tables":0},"unopened":[],"bounds":{"document_bytes":16777216,"sheet_cells":100000,"rows_first":2000,"rows_last":500,"rows_between":2000,"halvings":0,"cell_chars":16384,"cell_head_chars":4096},"cells_cut":0,"cells_raw":0,"read":"whole","date_system":"1900"}

{"sheet":"Guidance","index":0,"n_rows":66,"n_cols":2,"rows_kept":66,"cut":false,"hidden":false,"merged":[[66,0,66,16],[49,0,49,16],[56,0,56,16],[63,0,63,16],[8,0,8,16],[14,0,14,16],[23,0,23,16],[30,0,30,16],[38,0,38,16],[46,0,46,16]]}
["Basics:"]
["Type in the sections shaded gray."]
["To resize height of rows:  "]
[null,"Place cursor in between row numbers on far left of sheet and drag downward to increase size of row above cursor (in this picture that would be row 2). Drag upward to decrease size."]
[]
[]
["Do not resize width of rows. Use the wrap text feature instead."]
["Do not change merged cells."]
[]
["Targets:"]
["Targets are the specific outcomes you expect to see if you achieve the strategic goal. "]
[]
["Targets should be specific, measurable, attainable, relevant. It is implied that the timeframe is one year."]
["Targets must address subgroups of students with achievement gaps."]
[]
["Goal:"]
["Consider the following questions when formulating your strategic goal:"]
["Is the goal aligned to Pasco's key priorities?"]
["Will reaching our goal promote student learning?"]
["Can we measure progress toward our strategic goal?"]
["Could our goal arguably have a positive impact on multiple grades and subjects?"]
["Does the goal include more than one content area? (As opposed to the old way of writing separate goals for each area)"]
["Together, the strategic goal and annual targets together form a \"theory of action,\" which is an \"If, then\" statement: If we accomplish our strategic goal, then we will reach our targets.  "]
[]
["Goal Monitoring:"]
["Determine what evidence will be monitored and reflected upon. This evidence answers the question: \"How will we know we are meeting targets and goal or making progress toward targets and goal?\""]
[]
["The process of monitoring and reflecting is used to decide if progress toward the goal is satisfactory. Determine criteria to evaluate results and plans for what you will do to address each type of result  "]
[null,"(positive, questionable or poor). Use multiple measures where possible."]
["At predetermined intervals, decide as a team to continue, intensify, modify or discontinue strategies, revisit barriers or modify the goal itself based on data."]
[]
["Strategies:"]
["Strategies are actions taken to address or remove a  barrier. Brainstorm the barriers that are getting in the way of achieving your goals. Think of strategies that would reduce or overcome the barrier.  "]
["Action steps are then written to implement a strategy."]
["Questions to consider: "]
["Is this an evidence-based practice?"]
["To what extent does it impact or remove the barrier?"]
["Is it doable within current resource constraints?  "]
[]
["Strategy Implementation Monitoring:"]
["In this step, you are planning to monitor how the strategy is implemented and how effective it is at reducing or overcoming the barrier."]
["Develop a plan that will support the school in completing action steps on time and as intended. This plan should be viewed as a proactive approach of providing support to help the school stay on  "]
[null,"schedule rather than reactive after you have already fallen behind."]
["This action steps lay out what data will be collected, and at what intervals, to evaluate whether the strategy is reducing or eliminating the barrier."]
["At predetermined intervals, the team should be made aware of any strategies that do not appear to be working so that they may determine whether it is an issue of implementation fidelity  "]
[null,"(as evidenced in previous step) or if the strategy itself is flawed."]
[]
["Action Step:"]
["Identify steps that need to be taken to implement the strategy."]
[]
["Narrative Section:"]
["Type in your school's mission in the gray box at the top."]
["ALL schools respond to questions 1-6."]
["Schools with a drop out prevention or academic intervention program respond to question 7."]
["Schools with academic enriched, innovative program(s) respond to question 8."]
["High Schools also respond to question 9."]
[]
["Checklist:"]
["ALL schools verify the information in the All schools section occurred, and click the box in front of the statement to indicate yes."]
["High Schools also verify and click the box in front of the statements in the High Schools section."]
["Review the statements in the Conditional section. If the statement pertains to the school, verify it occurred, and click the box in front of the staement to indicate yes."]
["Electronic Signature:"]
["Click the box in front of the statement to represent an electronic signature."]
[]
["Executive Summary:"]
["Do not type on this page. It is linked to the other pages in the workbook and will populate with information you have entered throughout the workbook."]

{"sheet":"Goal 1","index":1,"n_rows":91,"n_cols":15,"rows_kept":91,"cut":false,"hidden":false,"merged":[[82,10,82,13],[83,1,83,2],[83,3,83,5],[83,6,83,9],[83,10,83,13],[84,1,84,2],[89,1,89,2],[90,1,90,2],[90,3,90,5],[90,6,90,9],[90,10,90,13],[89,3,89,5],[89,6,89,9],[89,10,89,13],[87,1,87,2],[87,3,87,5],[88,1,88,2],[88,3,88,5],[88,6,88,9],[88,10,88,13],[70,10,70,13],[84,3,84,5],[84,6,84,9],[84,10,84,13],[85,0,85,13],[87,6,87,9],[87,10,87,13],[86,1,86,2],[86,3,86,5],[86,6,86,9],[86,10,86,13],[79,0,79,4],[79,5,79,13],[80,1,80,2],[80,3,80,5],[80,6,80,9],[80,10,80,13],[81,1,81,2],[81,3,81,5],[81,6,81,9],[81,10,81,13],[82,1,82,2],[82,3,82,5],[82,6,82,9],[78,0,78,13],[75,3,75,5],[75,6,75,9],[75,10,75,13],[72,3,72,5],[72,6,72,9],[72,10,72,13],[73,1,73,2],[73,3,73,5],[73,10,73,13],[74,1,74,2],[74,3,74,5],[74,6,74,9],[74,10,74,13],[75,1,75,2],[76,1,76,2],[76,3,76,5],[76,6,76,9],[76,10,76,13],[71,0,71,13],[72,1,72,2],[73,6,73,9],[65,0,65,4],[65,5,65,13],[66,1,66,2],[66,3,66,5],[66,6,66,9],[66,10,66,13],[67,1,67,2],[67,3,67,5],[67,6,67,9],[67,10,67,13],[68,1,68,2],[68,3,68,5],[68,6,68,9],[68,10,68,13],[69,1,69,2],[69,3,69,5],[69,6,69,9],[69,10,69,13],[70,1,70,2],[70,3,70,5],[70,6,70,9],[64,0,64,13],[61,3,61,5],[61,6,61,9],[61,10,61,13],[62,1,62,2],[62,3,62,5],[62,6,62,9],[62,10,62,13],[58,6,58,9],[58,10,58,13],[59,1,59,2],[59,3,59,5],[59,6,59,9],[59,10,59,13],[60,1,60,2],[60,3,60,5],[60,6,60,9],[60,10,60,13],[61,1,61,2],[53,1,53,2],[53,3,53,5],[53,6,53,9],[53,10,53,13],[54,1,54,2],[54,3,54,5],[54,6,54,9],[54,10,54,13],[58,1,58,2],[55,6,55,9],[55,10,55,13],[56,1,56,2],[56,3,56,5],[56,6,56,9],[56,10,56,13],[57,0,57,13],[55,3,55,5],[55,1,55,2],[51,0,51,4],[51,5,51,13],[52,1,52,2],[52,3,52,5],[52,6,52,9],[52,10,52,13],[50,0,50,13],[47,3,47,5],[47,6,47,9],[47,10,47,13],[46,1,46,2],[46,3,46,5],[46,6,46,9],[46,10,46,13],[47,1,47,2],[48,1,48,2],[48,3,48,5],[48,6,48,9],[48,10,48,13],[41,1,41,2],[41,3,41,5],[41,6,41,9],[41,10,41,13],[43,0,43,13],[44,3,44,5],[44,6,44,9],[44,10,44,13],[45,1,45,2],[45,3,45,5],[45,6,45,9],[45,10,45,13],[44,1,44,2],[42,1,42,2],[42,3,42,5],[42,6,42,9],[42,10,42,13],[39,1,39,2],[39,3,39,5],[39,6,39,9],[39,10,39,13],[40,1,40,2],[40,3,40,5],[40,6,40,9],[40,10,40,13],[37,0,37,4],[37,5,37,13],[38,1,38,2],[38,3,38,5],[38,6,38,9],[38,10,38,13],[28,10,28,13],[24,6,24,9],[24,10,24,13],[24,1,24,2],[24,3,24,5],[25,1,25,2],[26,1,26,2],[28,1,28,2],[25,3,25,5],[26,3,26,5],[28,3,28,5],[27,1,27,2],[27,3,27,5],[27,6,27,9],[27,10,27,13],[22,0,22,13],[17,0,17,13],[18,0,18,2],[19,3,20,5],[19,6,20,9],[19,10,20,13],[1,2,1,13],[25,10,25,13],[26,10,26,13],[7,0,7,2],[8,0,14,2],[5,0,5,2],[4,1,4,13],[0,0,3,1],[16,0,16,13],[5,11,5,13],[5,8,5,9],[5,4,5,6],[15,3,15,13],[32,10,32,13],[29,0,29,13],[0,2,0,13],[2,12,2,13],[3,12,3,13],[3,9,3,10],[3,2,3,4],[3,5,3,7],[7,3,7,13],[8,3,8,13],[9,3,9,13],[10,3,10,13],[14,3,14,13],[2,3,2,10],[23,0,23,4],[6,0,6,13],[28,6,28,9],[25,6,25,9],[26,6,26,9],[18,3,18,5],[18,6,18,9],[18,10,18,13],[19,0,20,2],[23,5,23,13],[36,0,36,13],[21,0,21,13],[11,3,11,13],[12,3,12,13],[13,3,13,13],[30,3,30,5],[30,10,30,13],[30,6,30,9],[33,1,33,2],[33,3,33,5],[33,6,33,9],[33,10,33,13],[34,6,34,9],[34,10,34,13],[34,3,34,5],[34,1,34,2],[31,1,31,2],[30,1,30,2],[32,1,32,2],[31,3,31,5],[32,3,32,5],[31,6,31,9],[32,6,32,9],[31,10,31,13]]}
[null,null,"  Pasco County Schools Success Plan "]
[null,null,"Excellence in Student Achievement--Employee Success--Tax Payer Value--Connecting to the Community"]
[null,null,"School:","Wesley Chapel High School",null,null,null,null,null,null,null,"Region:","East"]
[null,null,"Initial Plan Development Date:  ",null,null,"2017-05-15",null,null,"Review Date:  ",null,null,"Review Date:  "]
["Goal 1:       ","By the conclusion of the 2017-2018 School Year 70% of instructional staff will demonstrate evidence that they are planning, delivering, assessing, and monitoring standards based instruction matched to the rigor of the standards. "]
["District Priority Support of Goal:  ",null,null," ","Data Driven Decisions ",null,null,null,"Collaborative Culture",null,null,"High Impact Instruction"]
["What outcomes does the goal support?"]
["Targets for goal:",null,null,"By June of 2018, 58 % of students will have earned a proficient score on the Algebra 1 EOC."]
[" ",null,null,"By June of 2018, 83% of students will have earned a proficient score on the Geometry EOC."]
[null,null,null,"By June of 2018, 42% of students will have earned a proficient score on the Algebra 2 EOC."]
[null,null,null,"By June of 2018, 67% of students will have earned a proficient score on the Biology EOC."]
[null,null,null,"By June of 2018, 71% of students will have earned a proficient score on the US history EOC."]
[null,null,null,"By June of 2018, there will be a math gain of 30% (+4%) on the FSA Mathmatics test in our lowest 25% of students. "]
[null,null,null,"By June of 2018, there will be a reading gain of 38% (+5) for an increase to 38% on the FSA ELA test in our lowest 25% of students."]
[null,null,null,"By June of 2018, 51% (+3) of students will have earned a proficient score on the 9th Grade ELA FSA."]
[null,null,null,"By June of 2018, 55% (+3) of students will have earned a proficient score on the 10th Grade ELA FSA."]
["Goal Monitoring"]
["What evidence will be used to measure progress toward targets which lead to goal attainment?  "]
["Evidence of progress monitoring ",null,null,"Person who leads progress monitoring",null,null,"Tools/data for progress monitoring",null,null,null,"Timeframe, frequency of progress monitoring"]
["PLC Meetings,  Administrative Walkthroughs with specific actionable feedback, Meetings with PLC Facilitators/Admin,  Administrative and PLC Facilitator Walkthroughs, Common Assessments, District Quarterly Assessments\n\n                \n",null,null,"Administrators, PLC facilitators",null,null,"Google Forms, My PGS, meetings notes, District Quarterly Checks, Walkthrough Feedback, Common Assessments ",null,null,null,"Bi-monthly, weekly, semester, weekly, monthly"]
[]
["Strategy/Strategies to be implemented"]
["Strategy Implementation (Strategy 1 Goal 1)"]
["What strategy will be used to overcome/reduce barriers to goal attainment?",null,null,null,null,"Utilize the Core Action Guide to determine the level of rigor in classrooms"]
[" ","Evidence of action step occuring",null,"Person who leads action step",null,null,"What will be done in action step",null,null,null,"Timeframe for action step"]
["Action Step 1","Define instructional practices that will be used to increase rigor in the classroom",null,"Administrators, PLC facilitator",null,null,"Common language will be developed around rigor and the Core Action Guide will be introduced to teachers as a resource",null,null,null,"Planning Week"]
["Action Step 2","Prioritize PLC work with the curriculum in order to plan appriopriate lessons to increase rigor",null,"Administrators, PLC facilitator",null,null,"Utillzing walkthrough data from the Core Action Guide tool, PLCs will work to prioritize high-impact strategies to deliver to students to increase the rigor",null,null,null,"2017-08-01"]
["Action Step 3","Create goals with an individualized action plan for math, science, Enligh and Social Studies PLCs",null,"Administrators, PLC facilitator",null,null,"Create goals with an action plan with agreed upon benchmarks for monitoring progress towards the goal",null,null,null,"2017-08-01"]
["Action Step 4","Provide differentiated feedback to teachers based on Core Action Guide",null,"Administrators",null,null,"Walk Through Data, meeting notes, Google Calendar",null,null,null,"Weekly , Monthly, Quarterly"]
["Strategy Implementation Monitoring (Fidelity and Effectiveness)"]
[" ","Evidence of strategy monitoring  ",null,"Person who ensures strategy monitoring occurs",null,null," Method by which strategy is monitored",null,null,null,"Timeframe for monitoring strategy implementation and effectiveness",null,null,null," "]
["Action Step 1","Planning Week Teacher Mini-Session Training",null,"Administrators",null,null,"Training Agenda and materials",null,null,null,"2017-08-01"]
["Action Step 2","Collection of data from Core Action rigor walk and needs assessment",null,"Administration, PLC Facilitators",null,null,"PLC minutes, Core Action data",null,null,null,"weekly (PLCs will meet 3 times a month)"]
["Action Step 3","Goals are shared with administration ",null,"Administration, PLC Facilitators",null,null,"Google Calendar, Walk Through Feedback  Forms, Goals Sheet",null,null,null,"August, monthly"]
["Action Step 4"]
[]
["Strategy Implementation (Strategy 2 Goal 1)"]
["What strategy will be used to overcome/reduce barriers to goal attainment?",null,null,null,null,"Provide Job-Embedded Professional Development throughout the school year based on the Walk Through Feedback with a focus on the PLC Plan Target (developing, monitoring, assessing and delivering)."]
[" ","Evidence of action step occuring",null,"Person who leads action step",null,null,"What will be done in action step",null,null,null,"Timeframe for action step"]
["Action Step 1","Create and publish a schedule of Professional Development Dates",null,"Administration",null,null,"One Thursday a month dedicated to job-embedded Professional Development ",null,null,null,"Calendar will be established by August 1, 2017 and PD trainings will be held once a month"]
["Action Step 2","Establish team of Instructional Leaders to provide the Professional Development Training ",null,"Administration and PD Committee ",null,null,"Utilizing the Walk Through Feedback, Administrative team and PLC facilitators will identify targeted areas for Professional Development ",null,null,null,"5 times per school year based on PLC and Grade Level Team calendar"]
["Action Step 3","Create and deliver PD Survey to assess effectiveness and determine needs of PD trainings ",null,"Administration and PD Committee ",null,null,"Develop a survey to be delivered to teachers as a needs assessment and assist in planning Professional Development trainings around the PLC Plan targets",null,null,null,"bi-montly"]
["Action Step 4"]
["Strategy Implementation Monitoring (Fidelity and Effectiveness)"]
[" ","Evidence of strategy monitoring  ",null,"Person who ensures strategy monitoring occurs",null,null," Method by which strategy is monitored",null,null,null,"Timeframe for monitoring strategy implementation and effectiveness"]
["Action Step 1","Professional Development Trainings developed and presented",null,"Administrator overseeing the PD Committee",null,null,"committee meetings ",null,null,null,"August, 5 times a year based on the PLC and Grade Level Team meetings"]
["Action Step 2","Walk Through Data, PD training survey",null,"Administration",null,null,"PLC Meeting, Walk Throughs",null,null,null,"Weekly"]
["Action Step 3"]
["Action Step 4"]
[]
["Strategy Implementation (Strategy 3 Goal 1)"]
["What strategy will be used to overcome/reduce barriers to goal attainment?"]
[" ","Evidence of action step occuring",null,"Person who leads action step",null,null,"What will be done in action step",null,null,null,"Timeframe for action step"]
["Action Step 1"]
["Action Step 2"]
["Action Step 3"]
["Action Step 4"]
["Strategy Implementation Monitoring (Fidelity and Effectiveness)"]
[" ","Evidence of strategy monitoring  ",null,"Person who ensures strategy monitoring occurs",null,null," Method by which strategy is monitored",null,null,null,"Timeframe for monitoring strategy implementation and effectiveness"]
["Action Step 1"," "]
["Action Step 2"]
["Action Step 3"]
["Action Step 4"]
[]
["Strategy Implementation (Strategy 4 Goal 1)"]
["What strategy will be used to overcome/reduce barriers to goal attainment?"]
[" ","Evidence of action step occuring",null,"Person who leads action step",null,null,"What will be done in action step",null,null,null,"Timeframe for action step"]
["Action Step 1"]
["Action Step 2"]
["Action Step 3"]
["Action Step 4"]
["Strategy Implementation Monitoring (Fidelity and Effectiveness)"]
[" ","Evidence of strategy monitoring  ",null,"Person who ensures strategy monitoring occurs",null,null," Method by which strategy is monitored",null,null,null,"Timeframe for monitoring strategy implementation and effectiveness"]
["Action Step 1"]
["Action Step 2"]
["Action Step 3"]
["Action Step 4"]
[]
["Strategy Implementation (Strategy 5 Goal 1)"]
["What strategy will be used to overcome/reduce barriers to goal attainment?"]
[" ","Evidence of action step occuring",null,"Person who leads action step",null,null,"What will be done in action step",null,null,null,"Timeframe for action step"]
["Action Step 1"]
["Action Step 2"]
["Action Step 3"]
["Action Step 4"]
["Strategy Implementation Monitoring (Fidelity and Effectiveness)"]
[" ","Evidence of strategy monitoring  ",null,"Person who ensures strategy monitoring occurs",null,null," Method by which strategy is monitored",null,null,null,"Timeframe for monitoring strategy implementation and effectiveness"]
["Action Step 1"]
["Action Step 2"]
["Action Step 3"]
["Action Step 4"]

{"sheet":"Goal 1 Mid Year","index":2,"n_rows":16,"n_cols":4,"rows_kept":16,"cut":false,"hidden":false,"merged":[[16,3,16,9],[6,1,6,9],[7,1,7,9],[9,1,9,9],[10,2,10,9],[12,2,12,9],[13,3,13,9],[15,3,15,9],[8,1,8,9],[11,2,11,9],[14,3,14,9],[5,0,5,9],[0,0,0,8],[2,1,2,8],[3,0,3,8],[4,0,4,9],[1,0,1,9]]}
["Mid Year Reflection"]
["This section is to be completed after mid-year assessment data is available."]
["Goal 1: "]
["Has the goal been achieved?"]
["If the goal has been achieved, describe the evidence that indicates this: (This completes the narrative for the goal.)"]
[]
[" ","If the goal has not been achieved, is desired progress being made to accomplish the goal by the end of the year?"]
[" ","If desired progress is being made, describe the evidence that indicates this: (This completes the narrative for the goal.)"]
[]
[null,"If desired progress is not being made, have the barriers been reduced/eliminated?"]
[null,null,"If the barriers have been reduced/eliminated, describe the evidence that indicates this: (This completes the narrative for the goal.)"]
[]
[null,null,"If the barriers have not been eliminated/reduced, are the strategies being implemented with fidelty as designed?"]
[null,null,null,"If the strategy is being implemented with fidelty as designed, what evidence indicates this? Engage in a problem solving process to determine if changes need to be made to the strategy. Describe the changes made:"]
[]
[null,null,null,"If the strategy is not being implemented with fidelty as designed,  engage in a problem solving process to determine if changes need to be made to the strategy or strategy implementation. Describe the changes made:"]

{"sheet":"Goal 2","index":3,"n_rows":90,"n_cols":13,"rows_kept":90,"cut":false,"hidden":false,"merged":[[36,10,36,13],[31,1,31,2],[31,10,31,13],[32,1,32,2],[29,1,29,2],[29,3,29,5],[80,1,80,2],[80,3,80,5],[80,6,80,9],[80,10,80,13],[70,1,70,2],[70,3,70,5],[43,1,43,2],[43,3,43,5],[43,6,43,9],[43,10,43,13],[40,1,40,2],[41,0,41,13],[62,0,62,13],[63,0,63,4],[63,5,63,13],[65,1,65,2],[65,3,65,5],[65,6,65,9],[20,0,20,4],[20,5,20,13],[21,1,21,2],[77,0,77,4],[77,5,77,13],[46,3,46,5],[46,6,46,9],[46,10,46,13],[21,3,21,5],[21,6,21,9],[21,10,21,13],[28,1,28,2],[34,0,34,13],[35,0,35,4],[35,5,35,13],[36,1,36,2],[36,3,36,5],[36,6,36,9],[37,1,37,2],[37,3,37,5],[37,6,37,9],[37,10,37,13],[38,1,38,2],[38,3,38,5],[83,0,83,13],[84,1,84,2],[84,3,84,5],[84,6,84,9],[84,10,84,13],[81,1,81,2],[81,3,81,5],[81,6,81,9],[68,1,68,2],[68,3,68,5],[68,6,68,9],[68,10,68,13],[81,10,81,13],[76,0,76,13],[79,1,79,2],[79,3,79,5],[79,6,79,9],[79,10,79,13],[82,1,82,2],[82,3,82,5],[82,6,82,9],[82,10,82,13],[78,1,78,2],[78,3,78,5],[71,3,71,5],[71,6,71,9],[71,10,71,13],[69,0,69,13],[66,1,66,2],[66,3,66,5],[66,6,66,9],[66,10,66,13],[67,1,67,2],[67,3,67,5],[67,6,67,9],[67,10,67,13],[74,3,74,5],[74,6,74,9],[74,10,74,13],[72,1,72,2],[72,3,72,5],[72,6,72,9],[72,10,72,13],[73,1,73,2],[73,3,73,5],[73,6,73,9],[73,10,73,13],[74,1,74,2],[78,6,78,9],[78,10,78,13],[38,6,38,9],[38,10,38,13],[42,1,42,2],[42,3,42,5],[42,6,42,9],[42,10,42,13],[40,3,40,5],[40,6,40,9],[40,10,40,13],[39,1,39,2],[39,3,39,5],[39,6,39,9],[39,10,39,13],[60,1,60,2],[60,3,60,5],[60,6,60,9],[60,10,60,13],[64,6,64,9],[64,10,64,13],[70,6,70,9],[70,10,70,13],[71,1,71,2],[89,3,89,5],[89,6,89,9],[89,10,89,13],[87,1,87,2],[87,3,87,5],[87,6,87,9],[87,10,87,13],[89,1,89,2],[85,1,85,2],[85,3,85,5],[85,6,85,9],[85,10,85,13],[86,1,86,2],[86,3,86,5],[86,6,86,9],[86,10,86,13],[88,1,88,2],[88,3,88,5],[88,6,88,9],[88,10,88,13],[65,10,65,13],[56,1,56,2],[56,3,56,5],[56,6,56,9],[56,10,56,13],[54,1,54,2],[54,3,54,5],[54,6,54,9],[54,10,54,13],[64,1,64,2],[64,3,64,5],[57,1,57,2],[57,3,57,5],[57,6,57,9],[57,10,57,13],[58,1,58,2],[58,3,58,5],[58,6,58,9],[58,10,58,13],[59,1,59,2],[59,3,59,5],[59,6,59,9],[59,10,59,13],[53,3,53,5],[53,6,53,9],[53,10,53,13],[55,0,55,13],[53,1,53,2],[51,1,51,2],[51,3,51,5],[51,6,51,9],[51,10,51,13],[52,1,52,2],[52,3,52,5],[52,6,52,9],[52,10,52,13],[44,3,44,5],[44,6,44,9],[44,10,44,13],[44,1,44,2],[45,1,45,2],[45,3,45,5],[45,6,45,9],[45,10,45,13],[46,1,46,2],[48,0,48,13],[49,0,49,4],[49,5,49,13],[50,1,50,2],[50,3,50,5],[50,6,50,9],[50,10,50,13],[0,0,3,1],[0,2,0,13],[2,3,2,10],[2,12,2,13],[3,2,3,4],[3,5,3,7],[3,9,3,10],[3,12,3,13],[4,1,4,13],[1,2,1,13],[18,0,18,13],[19,0,19,13],[7,3,7,13],[8,0,12,2],[8,3,8,13],[9,3,9,13],[10,3,10,13],[16,0,17,2],[16,3,17,5],[16,6,17,9],[16,10,17,13],[7,0,7,2],[11,3,11,13],[12,3,12,13],[5,4,5,6],[13,0,13,13],[14,0,14,13],[15,0,15,2],[15,3,15,5],[15,6,15,9],[15,10,15,13],[5,11,5,13],[5,0,5,2],[6,0,6,13],[5,8,5,9],[22,1,22,2],[22,3,22,5],[22,6,22,9],[22,10,22,13],[29,6,29,9],[29,10,29,13],[30,1,30,2],[25,1,25,2],[25,3,25,5],[25,6,25,9],[25,10,25,13],[23,1,23,2],[23,3,23,5],[23,6,23,9],[23,10,23,13],[24,1,24,2],[24,3,24,5],[24,6,24,9],[24,10,24,13],[26,1,26,2],[26,3,26,5],[26,6,26,9],[26,10,26,13],[32,6,32,9],[32,10,32,13],[32,3,32,5],[27,0,27,13],[28,3,28,5],[28,6,28,9],[28,10,28,13],[30,3,30,5],[30,6,30,9],[30,10,30,13],[31,3,31,5],[31,6,31,9]]}
[null,null,"  Pasco County Schools Success Plan"]
[null,null,"Excellence in Student Achievement--Employee Success--Tax Payer Value--Connecting to the Community"]
[null,null,"School:",{"$f":"'Goal 1'!$D$3","v":"Wesley Chapel High School"},null,null,null,null,null,null,null,"Region:",{"$f":"'Goal 1'!$M$3","v":"East"}]
[null,null,"Initial Plan Development Date:  ",null,null,"2017-05-15",null,null,"Review Date:  ",{"$f":"'Goal 1'!$J$4","v":0},null,"Review Date:  ",{"$f":"'Goal 1'!$M$4","v":0}]
["Goal 2:       ","  By the conclusion of the 2017-2018 school year 50% of staff will be engaged and Student Hope will be at 40%, and Engagement 33% "]
["District Priority Support of Goal:  ",null,null," ","Data Driven Decisions ",null,null,null,"Collaborative Culture",null,null,"High Impact Instruction"]
["What outcomes does the goal support?"]
["Targets for goal:",null,null,"By June of 2018, 65% of students will be connected to at least one teacher on the WCHS campus and other students on the WCHS campus."]
[" ",null,null,"By June of 2018, 40% of students will have hope as defined by the Gallup Poll."]
[null,null,null,"By June of 2018, 33% of students will be engaged as defined by the Gallup Poll."]
[null,null,null,"By June of 2018, 50% of staff will be engaged as defined by the Gallup Poll. "]
[]
[]
["Goal Monitoring"]
["What evidence will be used to measure progress toward targets which lead to goal attainment?  "]
["Evidence of progress monitoring ",null,null,"Person who leads progress monitoring",null,null,"Tools/data for progress monitoring",null,null,null,"Timeframe, frequency of progress monitoring"]
["PLC meetings, CATS Tickets at all grade levels, CATS Store every Friday, Student Engagement Activities (Clubs, Class Competitions, Common Projects)\n",null,null,"Administration, Grade Level Leadership Team",null,null,"Gallup Poll, School surveys, informal converstaions with students, withdraw report",null,null,null,"Once a year, quarterly, daily, monthly"]
[]
["Strategy/Strategies to be implemented"]
["Strategy Implementation (Strategy 1 Goal 2)"]
["What strategy will be used to overcome/reduce barriers to goal attainment?",null,null,null,null,"Provide opportunities for students to engage in the design and delivery of learning opportunities outside during the school year. "]
[" ","Evidence of action step occuring",null,"Person who leads action step",null,null,"What will be done in action step",null,null,null,"Timeframe for action step"]
["Action Step 1","Establish School Store for CATS Tickets Incentive Program",null,"Administration",null,null,"School Store is stocked with class color and blue/white incentives students can trade CATS tickets as a positive reward system",null,null,null,"2017-08-01"]
["Action Step 2","Establish a Student Development committee",null,"Administration",null,null,"Administration will identify teachers who will serve on the Student Development Committee",null,null,null,"2017-08-01"]
["Action Step 3","Survey students for feedback on WCHS supports and services",null,"Administration, Student PD Committee Chair",null,null,"Reflect on survey results and brainstorm student engagement activities and learning opportunities for 2017-2018",null,null,null,"2017-09-01"]
["Action Step 4","Create student engagement activities calendar and Student Professional Development Calendar",null,"Administration, Student PD Committee Chair",null,null,"Create meaningful learning opportunities and engagement activities calendar based on student surveys for the 2017-2018 calendar",null,null,null,"2017-09-01"]
[]
["Strategy Implementation Monitoring (Fidelity and Effectiveness)"]
[" ","Evidence of strategy monitoring  ",null,"Person who ensures strategy monitoring occurs",null,null," Method by which strategy is monitored",null,null,null,"Timeframe for monitoring strategy implementation and effectiveness"]
["Action Step 1","Committee roster and committee meeting dates will be established",null,"Administration, Student Development Committee",null,null,"Activities calendar, meeting minutes",null,null,null,"monthly, quarterly"]
["Action Step 2","Calendar of events and Student Trainings will be created and published",null,"Administrator of Student Development Committee, Committee Chairperson",null,null,"Activities calendar, meeting minutes",null,null,null,"monthly, quarterly"]
["Action Step 3","Attendance of students who partcipate in events and trainings",null,"Student Development Committee ",null,null,"Sign-in/attendance sheets, whole class participation",null,null,null,"at each event or training"]
["Action Step 4"]
[]
["Strategy Implementation (Strategy 2 Goal 2)"]
["What strategy will be used to overcome/reduce barriers to goal attainment?",null,null,null,null,"Academic Advising and Club periods will be created to provide students with coaching and mentoring opportunities with adults on campus."]
[" ","Evidence of action step occuring",null,"Person who leads action step",null,null,"What will be done in action step",null,null,null,"Timeframe for action step"]
["Action Step 1","Academic Advising Periods created for students to match them with an adult mentor/Academic Advisor",null,"Administration",null,null,"Students will be placed in Academic Advising/Club periods with a teacher with whom they have a class or are members of that teachers club.",null,null,null,"2017-08-01"]
["Action Step 2","Club Fair ",null,"Administation, Club Sponsors",null,null,"Students will have the opportunity to join clubs that they are interested in at the beginning of the year to increase engagement",null,null,null,"2017-08-01"]
["Action Step 3"]
["Action Step 4"]
["Strategy Implementation Monitoring (Fidelity and Effectiveness)"]
[" ","Evidence of strategy monitoring  ",null,"Person who ensures strategy monitoring occurs",null,null," Method by which strategy is monitored",null,null,null,"Timeframe for monitoring strategy implementation and effectiveness"]
["Action Step 1","Rosters of students will be matched to teachers or club sponsors in their schedule",null,"Administration, Club sponsors",null,null,"My Focus",null,null,null,"2017-08-01"]
["Action Step 2","Students sign up for clubs ",null,"Administation, Club Sponsors",null,null,"Club sign-up roster",null,null,null,"2017-08-01"]
["Action Step 3","Students meet with teachers during Academic Advising/Club periods ",null,"Administration, Club sponsors, teachers",null,null,"Monthly Progress Check Sheet, Reflection Log",null,null,null,"weekly, monthly"]
["Action Step 4"]
[]
["Strategy Implementation (Strategy 3 Goal 2)"]
["What strategy will be used to overcome/reduce barriers to goal attainment?",null,null,null,null,"Maximize Graduation Enhancement Coaches time with students during school day"]
[" ","Evidence of action step occuring",null,"Person who leads action step",null,null,"What will be done in action step",null,null,null,"Timeframe for action step"]
["Action Step 1","CLAW for 9/10 & 11/12 graders",null,"AP over GEP and GEP coaches",null,null,"AP will work with GEP coaches to select at-risk students that can get back on track through CLAW.  ",null,null,null,"Daily"]
["Action Step 2","At-risk Academic Advising Periods for 10th, 11th, and 12th graders",null,"AP over GEP and GEP coaches",null,null,"At-risk students will be put in Academic Advising Periods with a GEP coach where he/she will monitor grades and attendance.",null,null,null,"Weekly"]
["Action Step 3","Students attend academic lunch",null,"GEP coaches",null,null,"Students will attend academic lunch as a way to catch up on work or get tutoring assistance",null,null,null,"Daily"]
["Action Step 4"]
["Strategy Implementation Monitoring (Fidelity and Effectiveness)"]
[" ","Evidence of strategy monitoring  ",null,"Person who ensures strategy monitoring occurs",null,null," Method by which strategy is monitored",null,null,null,"Timeframe for monitoring strategy implementation and effectiveness"]
["Action Step 1","Pasco STAR list of students in SSAP",null,"GEP Administrator, GEP coaches",null,null,"Review data sources through MyStudent and track attendance sheets of Academic Lunch",null,null,null,"Daily, weekly"]
["Action Step 2","Increase in GPA for At-Risk students",null,"GEP Administrator, GEP coaches",null,null,"MyStudent and Pasco Star reports",null,null,null,"weekly, quarterly"]
["Action Step 3"]
["Action Step 4"]
[]
["Strategy Implementation (Strategy 4 Goal 2)"]
["What strategy will be used to overcome/reduce barriers to goal attainment?",null,null,null,null,"Academic Advising periods will be created to provide students with coaching and mentoring opportunities to "]
[" ","Evidence of action step occuring",null,"Person who leads action step",null,null,"What will be done in action step",null,null,null,"Timeframe for action step"]
["Action Step 1"]
["Action Step 2"]
["Action Step 3"]
["Action Step 4"]
["Strategy Implementation Monitoring (Fidelity and Effectiveness)"]
[" ","Evidence of strategy monitoring  ",null,"Person who ensures strategy monitoring occurs",null,null," Method by which strategy is monitored",null,null,null,"Timeframe for monitoring strategy implementation and effectiveness"]
["Action Step 1"]
["Action Step 2"]
["Action Step 3"]
["Action Step 4"]
[]
["Strategy Implementation (Strategy 5 Goal 2)"]
["What strategy will be used to overcome/reduce barriers to goal attainment?"]
[" ","Evidence of action step occuring",null,"Person who leads action step",null,null,"What will be done in action step",null,null,null,"Timeframe for action step"]
["Action Step 1"]
["Action Step 2"]
["Action Step 3"]
["Action Step 4"]
["Strategy Implementation Monitoring (Fidelity and Effectiveness)"]
[" ","Evidence of strategy monitoring  ",null,"Person who ensures strategy monitoring occurs",null,null," Method by which strategy is monitored",null,null,null,"Timeframe for monitoring strategy implementation and effectiveness"]
["Action Step 1"]
["Action Step 2"]
["Action Step 3"]
["Action Step 4"]
["Action Step 4"]

{"sheet":"Goal 2 Mid Year  ","index":4,"n_rows":16,"n_cols":4,"rows_kept":16,"cut":false,"hidden":false,"merged":[[11,2,11,9],[0,0,0,8],[1,0,1,9],[2,1,2,8],[3,0,3,8],[4,0,4,9],[5,0,5,9],[6,1,6,9],[7,1,7,9],[8,1,8,9],[9,1,9,9],[10,2,10,9],[12,2,12,9],[13,3,13,9],[14,3,14,9],[15,3,15,9],[16,3,16,9]]}
["Mid Year Reflection"]
["This section is to be completed after mid-year assessment data is available."]
["Goal 2: ",{"$f":"'Goal 2'!$B$5","v":"  By the conclusion of the 2017-2018 school year 50% of staff will be engaged and Student Hope will be at 40%, and Engagement 33% "}]
["Has the goal been achieved?"]
["If the goal has been achieved, describe the evidence that indicates this: (This completes the narrative for the goal.)"]
[]
[" ","If the goal has not been achieved, is desired progress being made to accomplish the goal by the end of the year?"]
[" ","If desired progress is being made, describe the evidence that indicates this: (This completes the narrative for the goal.)"]
[]
[null,"If desired progress is not being made, have the barriers been reduced/eliminated?"]
[null,null,"If the barriers have been reduced/eliminated, describe the evidence that indicates this: (This completes the narrative for the goal.)"]
[]
[null,null,"If the barriers have not been eliminated/reduced, are the strategies being implemented with fidelty as designed?"]
[null,null,null,"If the strategy is being implemented with fidelty as designed, what evidence indicates this? Engage in a problem solving process to determine if changes need to be made to the strategy. Describe the changes made:"]
[]
[null,null,null,"If the strategy is not being implemented with fidelty as designed,  engage in a problem solving process to determine if changes need to be made to the strategy or strategy implementation. Describe the changes made:"]

{"sheet":"Goal 3","index":5,"n_rows":89,"n_cols":13,"rows_kept":89,"cut":false,"hidden":false,"merged":[[71,1,71,2],[71,3,71,5],[71,6,71,9],[71,10,71,13],[18,0,18,13],[24,1,24,2],[24,3,24,5],[24,6,24,9],[24,10,24,13],[66,1,66,2],[66,3,66,5],[66,6,66,9],[66,10,66,13],[59,6,59,9],[59,10,59,13],[61,0,61,13],[62,0,62,4],[62,5,62,13],[63,1,63,2],[63,3,63,5],[63,6,63,9],[63,10,63,13],[44,3,44,5],[44,6,44,9],[79,3,79,5],[45,10,45,13],[47,0,47,13],[48,0,48,4],[48,5,48,13],[78,1,78,2],[78,3,78,5],[78,6,78,9],[78,10,78,13],[72,3,72,5],[72,6,72,9],[72,10,72,13],[45,3,45,5],[75,0,75,13],[76,0,76,4],[76,5,76,13],[77,1,77,2],[77,3,77,5],[77,6,77,9],[77,10,77,13],[70,1,70,2],[70,3,70,5],[70,6,70,9],[70,10,70,13],[69,1,69,2],[69,3,69,5],[69,6,69,9],[69,10,69,13],[35,1,35,2],[35,3,35,5],[35,6,35,9],[35,10,35,13],[36,1,36,2],[36,3,36,5],[36,6,36,9],[36,10,36,13],[64,10,64,13],[58,1,58,2],[58,3,58,5],[58,6,58,9],[58,10,58,13],[59,1,59,2],[59,3,59,5],[45,6,45,9],[68,0,68,13],[64,1,64,2],[64,3,64,5],[64,6,64,9],[88,1,88,2],[88,3,88,5],[88,6,88,9],[88,10,88,13],[87,3,87,5],[87,6,87,9],[87,10,87,13],[85,1,85,2],[85,3,85,5],[85,6,85,9],[85,10,85,13],[87,1,87,2],[45,1,45,2],[33,0,33,13],[34,0,34,4],[34,5,34,13],[51,1,51,2],[51,3,51,5],[51,6,51,9],[41,10,41,13],[42,1,42,2],[44,10,44,13],[37,1,37,2],[37,3,37,5],[37,6,37,9],[37,10,37,13],[42,10,42,13],[40,0,40,13],[41,1,41,2],[41,3,41,5],[41,6,41,9],[28,10,28,13],[72,1,72,2],[73,1,73,2],[73,3,73,5],[73,6,73,9],[73,10,73,13],[65,1,65,2],[65,3,65,5],[65,6,65,9],[31,1,31,2],[31,3,31,5],[31,6,31,9],[31,10,31,13],[67,1,67,2],[67,3,67,5],[67,6,67,9],[67,10,67,13],[55,1,55,2],[55,3,55,5],[55,6,55,9],[55,10,55,13],[56,1,56,2],[56,3,56,5],[56,6,56,9],[82,0,82,13],[86,1,86,2],[86,3,86,5],[86,6,86,9],[86,10,86,13],[80,1,80,2],[80,3,80,5],[79,6,79,9],[80,6,80,9],[80,10,80,13],[83,1,83,2],[83,3,83,5],[83,6,83,9],[83,10,83,13],[84,1,84,2],[84,3,84,5],[84,6,84,9],[84,10,84,13],[79,10,79,13],[81,1,81,2],[81,3,81,5],[81,6,81,9],[81,10,81,13],[79,1,79,2],[57,1,57,2],[57,3,57,5],[57,6,57,9],[57,10,57,13],[65,10,65,13],[54,0,54,13],[49,1,49,2],[49,3,49,5],[49,6,49,9],[49,10,49,13],[50,1,50,2],[50,3,50,5],[50,6,50,9],[50,10,50,13],[53,1,53,2],[53,3,53,5],[53,6,53,9],[53,10,53,13],[52,3,52,5],[52,6,52,9],[52,10,52,13],[52,1,52,2],[56,10,56,13],[7,3,7,13],[8,0,12,2],[8,3,8,13],[9,3,9,13],[10,3,10,13],[11,3,11,13],[12,3,12,13],[5,4,5,6],[51,10,51,13],[43,1,43,2],[43,3,43,5],[43,6,43,9],[43,10,43,13],[44,1,44,2],[38,1,38,2],[38,3,38,5],[38,6,38,9],[38,10,38,13],[39,1,39,2],[39,3,39,5],[39,6,39,9],[39,10,39,13],[42,3,42,5],[42,6,42,9],[5,11,5,13],[0,0,3,1],[0,2,0,13],[2,3,2,10],[2,12,2,13],[3,2,3,4],[3,5,3,7],[3,9,3,10],[3,12,3,13],[4,1,4,13],[5,0,5,2],[1,2,1,13],[6,0,6,13],[7,0,7,2],[5,8,5,9],[21,1,21,2],[21,3,21,5],[21,6,21,9],[21,10,21,13],[22,1,22,2],[22,3,22,5],[22,6,22,9],[22,10,22,13],[20,0,20,4],[20,5,20,13],[13,0,13,13],[14,0,14,13],[15,0,15,2],[15,3,15,5],[15,6,15,9],[15,10,15,13],[16,0,17,2],[16,3,17,5],[16,6,17,9],[16,10,17,13],[19,0,19,13],[23,1,23,2],[23,3,23,5],[23,6,23,9],[23,10,23,13],[30,6,30,9],[30,10,30,13],[30,3,30,5],[25,1,25,2],[25,3,25,5],[29,1,29,2],[29,3,29,5],[29,6,29,9],[29,10,29,13],[30,1,30,2],[25,6,25,9],[25,10,25,13],[26,0,26,13],[27,1,27,2],[27,3,27,5],[27,6,27,9],[27,10,27,13],[28,1,28,2],[28,3,28,5],[28,6,28,9]]}
[null,null,"  Pasco County Schools Success Plan"]
[null,null,"Excellence in Student Achievement--Employee Success--Tax Payer Value--Connecting to the Community"]
[null,null,"School:",{"$f":"'Goal 1'!$D$3","v":"Wesley Chapel High School"},null,null,null,null,null,null,null,"Region:",{"$f":"'Goal 1'!$M$3","v":"East"}]
[null,null,"Initial Plan Development Date:  ",null,null,"2017-05-15",null,null,"Review Date:  ",{"$f":"'Goal 1'!$J$4","v":0},null,"Review Date:  ",{"$f":"'Goal 1'!$M$4","v":0}]
["Goal 3:       ","  By the conclusion of the 2017-2018 school year WCHS will implement Grade-Level Targeted Outcomes and tiered supports for all grade levels based on Project 10 Data. "]
["District Priority Support of Goal:  ",null,null," ","Data Driven Decisions ",null,null,null,"Collaborative Culture",null,null,"High Impact Instruction"]
["What outcomes does the goal support?"]
["Targets for goal:",null,null,"By June of 2018, 30% of students who are identified as At-Risk based on any EWS indicator will move to On-track, based on Project 10 Data."]
[" ",null,null,"By June of 2018, 30% of students who are identified as Off-track based on any EWS indicator will move to At-Risk or On-track, based on Project 10 Data."]
[]
[]
[]
[]
["Goal Monitoring"]
["What evidence will be used to measure progress toward targets which lead to goal attainment?  "]
["Evidence of progress monitoring ",null,null,"Person who leads progress monitoring",null,null,"Tools/data for progress monitoring",null,null,null,"Timeframe, frequency of progress monitoring"]
["Academic Advising/Club Period GLT meetings, Student Services Team Meeting, Academic Advising Periods,  Grade Level Leadership Team meetings, Grade Level Work Group meetings, Grade Level Teams meetings, Project 10 Data\n",null,null,"Administration, Grade Level Leadership Team,  Grade Level Teams",null,null,"Project 10 Data, Principal and Advisory Board Report Out",null,null,null,"weekly, bi-weekly, monthly, quarterly, semesterly"]
[]
["Strategy/Strategies to be implemented"]
["Strategy Implementation (Strategy 1 Goal 3)"]
["What strategy will be used to overcome/reduce barriers to goal attainment?",null,null,null,null,"Monitor student progress utilizing Academic Advising Periods and monitor using protocols "]
[" ","Evidence of action step occuring",null,"Person who leads action step",null,null,"What will be done in action step",null,null,null,"Timeframe for action step"]
["Action Step 1","Meeting with grade Level Team Leaders for grade level team meetings assessment/reflection",null,"Administrators, Grade Level Team Leaders",null,null,"Grade Level Team leaders reflected and assessed how the GLT meeting functioned this year",null,null,null,"2017-05-22"]
["Action Step 2","Create Academic Advising Protocol for teachers",null,"Administrators, GLT Leaders",null,null,"Academic Advising Protocols are developed and shared with teachers",null,null,null,"2017-08-01"]
["Action Step 3","Train teachers on the Academic Advising protocols to be used as a resource to assist in monitoring student progress",null,"Administrators, GLT Leaders, ",null,null,"Teachers will be trained on how to implement the Academic Advising Protocols during the homeroom period to track student progress",null,null,null,"2017-08-01"]
["Action Step 4"]
["Strategy Implementation Monitoring (Fidelity and Effectiveness)"]
[" ","Evidence of strategy monitoring  ",null,"Person who ensures strategy monitoring occurs",null,null," Method by which strategy is monitored",null,null,null,"Timeframe for monitoring strategy implementation and effectiveness"]
["Action Step 1","Grade Level Team meetings ",null,"Administration",null,null,"Grade level Team meetings, notes, and completed Academic Advising folders",null,null,null,"2017-05-22"]
["Action Step 2","Academic Advising Protocols Developed",null,"Administration",null,null,"Academic Advising Protocols are developed and shared with teachers",null,null,null,"2017-08-01"]
["Action Step 3","Training materials, binders, meeting sheets",null,"Administration",null,null,"Training agenda, materials, binders",null,null,null,"Planning Week"]
["Action Step 4"]
[]
["Strategy Implementation (Strategy 2 Goal 3)"]
["What strategy will be used to overcome/reduce barriers to goal attainment?",null,null,null,null,"Implement school-wide incentive program through Grade Level Teams utilizing the CATS tickets."]
[" ","Evidence of action step occuring",null,"Person who leads action step",null,null,"What will be done in action step",null,null,null,"Timeframe for action step"]
["Action Step 1","CATS Tickets incentive program is implemented in each grade level",null,"Administration, GLT Leaders",null,null,"Teachers will be trained on the CATS Tickets incentive program",null,null,null,"Planning Week"]
["Action Step 2","Critiria for how students will earn CATS tickets determined",null,"Administration, GLT Leaders, Teachers",null,null,"Grade Level Teams will create criteria for how students will earn CATS tickets for each grade level (attendance, behavior, and academics) and how many tickets will be given per quarter",null,null,null,"Planning Week"]
["Action Step 3","CATS Tickets awarded to students at all grade levels",null,"Administration, GLT Leaders, Teachers",null,null,"Teachers will distribute CATS tickets based on grade-level criteria to students",null,null,null,"daily, weekly, monthly"]
["Action Step 4"]
["Strategy Implementation Monitoring (Fidelity and Effectiveness)"]
[" ","Evidence of strategy monitoring  ",null,"Person who ensures strategy monitoring occurs",null,null," Method by which strategy is monitored",null,null,null,"Timeframe for monitoring strategy implementation and effectiveness"]
["Action Step 1","Training on CATS Tickets incentive program",null,"Administration, GLT Leaders",null,null,"training agend, materials",null,null,null,"Planning week"]
["Action Step 2","CATS Tickets Criteria established",null,"Administration, GLT Leaders, Teachers",null,null,"CATS Tickets Criteria posters created",null,null,null,"Planning Week"]
["Action Step 3","CATS tickets collected at school store ",null,"Administration, GLT Leaders, Teachers",null,null,"CATS tickets will be counted at the end of each week and the data will be shared at Grade Level Team meetings",null,null,null,"weekly, monthly, quarterly"]
["Action Step 4"]
[]
["Strategy Implementation (Strategy 3 Goal 3)"]
["What strategy will be used to overcome/reduce barriers to goal attainment?",null,null,null,null,"Project 10 data will be utilized by all Grade Level Teams will report to Principal and Advisory Board"]
[" ","Evidence of action step occuring",null,"Person who leads action step",null,null,"What will be done in action step",null,null,null,"Timeframe for action step"]
["Action Step 1","Grade level teams are established and dates for grade level meetings are posted",null,"Administration",null,null,"Administration will determine when grade level meetings will be held",null,null,null,"2017-08-01"]
["Action Step 2","Porject 10 Data will be distributed and teachers will be trained on how to analyze the data.",null,"Grade Level Team leader, administrator, GEP coaches, school counselors",null,null,"Updated data from Pasco Star will be pulled and reviewed at every grade level meeting",null,null,null,"Monthly"]
["Action Step 3","Documentation of discussion around EWS system  ",null,"Grade level team leader",null,null,"Notes will be taken at grade level team meetings and turned in",null,null,null,"Monthly"]
["Action Step 4","GLT Progress Report Out with Principal and Advisory Board",null,"Administration, GLT Leaders, GLT Work Groups",null,null,"Teams will present results (percentage) of on, at-risk, and off track students who have Grade Level Achievements (Mario Worlds) related to grade-level goals",null,null,null,"Quartely"]
["Strategy Implementation Monitoring (Fidelity and Effectiveness)"]
[" ","Evidence of strategy monitoring  ",null,"Person who ensures strategy monitoring occurs",null,null," Method by which strategy is monitored",null,null,null,"Timeframe for monitoring strategy implementation and effectiveness"]
["Action Step 1","Training on EWS data and Pasco Star for staff",null,"Administration, GLT Leader",null,null,"Training agenda, materials",null,null,null,"Planning week"]
["Action Step 2","Pasco Star data reflection and grade-level targeted supports implemented based on data",null,"Administration, GLT Leadership Teams, GLT Workgroups, GLT team",null,null,"GLT meeting agenda, minutes, Pasco Star EWS data",null,null,null,"Monthly"]
["Action Step 3","Spreadsheet for each grade level with supports and interventions listed ",null,"Administration, GLT Leadership Teams, GLT Workgroups, GLT team",null,null,"Grade-level spreadsheet maintained ",null,null,null,"bi-weekly, monthly, quarterly"]
["Action Step 4","GLT Progress Report Out with Principal and Advisory Board calendar ",null,"Administration",null,null,"Calendar published with meeting format and expections/norms",null,null,null,"monthly"]
[]
["Strategy Implementation (Strategy 4 Goal 3)"]
["What strategy will be used to overcome/reduce barriers to goal attainment?"]
[" ","Evidence of action step occuring",null,"Person who leads action step",null,null,"What will be done in action step",null,null,null,"Timeframe for action step"]
["Action Step 1"]
["Action Step 2"]
["Action Step 3"]
["Action Step 4"]
["Strategy Implementation Monitoring (Fidelity and Effectiveness)"]
[" ","Evidence of strategy monitoring  ",null,"Person who ensures strategy monitoring occurs",null,null," Method by which strategy is monitored",null,null,null,"Timeframe for monitoring strategy implementation and effectiveness"]
["Action Step 1"]
["Action Step 2"]
["Action Step 3"]
["Action Step 4"]
[]
["Strategy Implementation (Strategy 5 Goal 3)"]
["What strategy will be used to overcome/reduce barriers to goal attainment?"]
[" ","Evidence of action step occuring",null,"Person who leads action step",null,null,"What will be done in action step",null,null,null,"Timeframe for action step"]
["Action Step 1"]
["Action Step 2"]
["Action Step 3"]
["Action Step 4"]
["Strategy Implementation Monitoring (Fidelity and Effectiveness)"]
[" ","Evidence of strategy monitoring  ",null,"Person who ensures strategy monitoring occurs",null,null," Method by which strategy is monitored",null,null,null,"Timeframe for monitoring strategy implementation and effectiveness"]
["Action Step 1"]
["Action Step 2"]
["Action Step 3"]
["Action Step 4"]
["Action Step 4"]

{"sheet":"Goal 3 Mid Year  ","index":6,"n_rows":16,"n_cols":4,"rows_kept":16,"cut":false,"hidden":false,"merged":[[11,2,11,9],[0,0,0,8],[1,0,1,9],[2,1,2,8],[3,0,3,8],[4,0,4,9],[5,0,5,9],[6,1,6,9],[7,1,7,9],[8,1,8,9],[9,1,9,9],[10,2,10,9],[12,2,12,9],[13,3,13,9],[14,3,14,9],[15,3,15,9],[16,3,16,9]]}
["Mid Year Reflection"]
["This section is to be completed after mid-year assessment data is available."]
["Goal 3: "]
["Has the goal been achieved?"]
["If the goal has been achieved, describe the evidence that indicates this: (This completes the narrative for the goal.)"]
[]
[" ","If the goal has not been achieved, is desired progress being made to accomplish the goal by the end of the year?"]
[" ","If desired progress is being made, describe the evidence that indicates this: (This completes the narrative for the goal.)"]
[]
[null,"If desired progress is not being made, have the barriers been reduced/eliminated?"]
[null,null,"If the barriers have been reduced/eliminated, describe the evidence that indicates this: (This completes the narrative for the goal.)"]
[]
[null,null,"If the barriers have not been eliminated/reduced, are the strategies being implemented with fidelty as designed?"]
[null,null,null,"If the strategy is being implemented with fidelty as designed, what evidence indicates this? Engage in a problem solving process to determine if changes need to be made to the strategy. Describe the changes made:"]
[]
[null,null,null,"If the strategy is not being implemented with fidelty as designed,  engage in a problem solving process to determine if changes need to be made to the strategy or strategy implementation. Describe the changes made:"]

{"sheet":"narrative sections","index":7,"n_rows":55,"n_cols":6,"rows_kept":55,"cut":false,"hidden":false,"merged":[[52,1,52,2],[40,1,40,8],[41,1,41,8],[44,1,44,8],[45,1,45,8],[46,1,46,8],[47,1,47,8],[48,1,48,8],[49,1,49,8],[50,1,50,8],[42,1,42,8],[43,1,43,8],[0,1,0,8],[2,1,2,8],[1,1,1,8],[3,0,3,8],[6,1,6,8],[4,1,4,8],[5,1,5,8],[25,1,25,8],[26,1,26,8],[27,2,27,8],[11,1,11,8],[12,1,12,8],[13,1,13,8],[14,1,15,1],[21,1,21,8],[34,1,34,8],[37,1,37,8],[54,1,54,8],[10,2,10,8],[35,1,35,8],[36,1,36,8],[38,1,38,8],[39,1,39,8],[53,1,53,8],[28,2,28,8],[29,2,29,8],[30,2,30,8],[31,1,31,8],[33,1,33,8],[22,1,22,8],[24,1,24,8]]}
["School:",{"$f":"'Goal 1'!$D$3","v":"Wesley Chapel High School"}]
["vision:"," All our students achieving success in college, career, and life"]
["mission:","To lead and encourage students to be life ready, strong in character, and to aspire to  meet high expectations, while generating college and career ready graduates who are able to think and learn independently"]
[]
[1,"Early Warning Systems/SB850"]
[null,"Pasco Schools requires this for all schools. ANY school that serves any students in grades 6, 7, or 8 has the requirement per Sections 1001.42 and 1003.53, F.S."]
[null,"Use the following indicators to complete this section:"]
[null,"*","Attendance below 90%"]
[null,"*","One or more suspensions"]
[null,"*","Course failure in ELA or mathematics"]
[null,"*","Level 1 score on statewide, standardized assessments in ELA or mathematics"]
[null,"How many students exhibit 2 or more of the indicators?"]
[null,"75- 12th: 6, 11th:12 , 10th 32: 9th:25"]
[null,"How many students by grade level exhibit each indicator?"]
[null,null,"Grade","Grade","Grade","Grade"]
[null,null,9,10,11,12]
[null,"Attendance below 90%"]
[null,"1 or more suspensions"]
[null,"Course failure in ELA or mathematics"]
[null,"Level 1 in ELA or mathematics"]
[]
[null,"Describe tiered intervention strategies employed by the school to improve the academic and behavioral performance of the students identified and to prevent others from exhibiting the indicators (for example, PBIS, Tier 1, and Tier 2 interventions)."]
[null,"WCHS has Grade Level Teams which identify and monitor students who are off-track, at-risk and on-track academically and behaviorally. The Grade Level Teams set goals for their grade level and create a plan with monitoring benchmarks throughout the year.  Tier 3 students who need additional supports or who are not responding to the targeted interventions are referred to the Student Services Team. This team meets every Tuesday and consists of administration, school counselors, GEP coaches, school psychologist, social worker, school nurse, P/I counselor, SRO, and behavior specialist to problem-solve around referred students. WCHS students are assigned to an Academic Advising or Club period which meets every Wednesday. During this time students will meet with their Academic Advisor or Club sponsor to review their grades and set goals. WCHS is implementing a school-wide incentive program with CATS tickets. Grade Level Team will determine how to award the CATS tickets. Students are able to redeem CATS tickets in the school store which has various school spirit items such as lanyards, beads, t-shirts, etc. Teachers also host lunch time tutoring that is available throughout the year. A schedule is posted on the WCHS website for students and parents to access when additional assistance is needed in various courses. This schedule is also attached to the report cards of those students who have earned a D or F in any course. "]
[]
[2,"Collaborative Teaching"]
[null,"This section is required for all schools, per section 1012.98, F. S. "]
[null,"Describe the specific strategies the school uses to implement PLCs and MTSS. Include the following:"]
[null,"*","The processes at the school for engaging in interdisciplinary planning, collaboration, and instruction"]
[null,"*","Strategies used at the school to align curriculum and instructional materials to state academic standards"]
[null,"*","Strategies the school uses to implement integrated digital instruction, project based instruction, and competency based instruction"]
[null,"*","How the school uses differentiated instructional strategies to engage and meet the needs of all learners"]
[null,"Our Professional Learning Communities meet every Thursday for an hour after school.  Each PLC decides on a goal to reach, both short term and long term goals with benchmrks to monitor progess. PLCs Facilitators will complete instructional walk throughs to gather feedback on rigor of instruction. The PLCs will analyze the data from the walk throughs and create action plans to increase the rigor.  Within PLCs, there are smaller groups that focus on their specific subjects.  PLC's make common assessments and review data in order to determine where our students are and the changes in their levels of understanding as the school year progresses.  Each small PLC group reviews the standards and discuss instructional strategies that he/she will use in order to deliver the instruction.  In addition, PLCs create activities for each level of student: remediation, on track, and enrichment.  Teachers use comprehension checks in order to determine what level the students are at upon assigning the activiy.   Administrators offer assistance in PLC's as needed and attend PLC's every week.  "]
[]
[3,"Student Transition and Readiness"]
[null,"Pasco Schools require this for all schools."]
[null,"Describe the strategies the school employs to support incoming and outgoing cohorts of students in transition from one school level to another (e.g., preK-K, 5th-6th, 8th-9th), AND describe the stratgeies used to welcome new students into the school."]
[null,"WCHS has a 9th Grade Academy. Students participate in a 9th Grade Orientation day that is only for 9th graders prior to school starting.  On this day, students learn about different aspects of our school and familiarize themselves with our rules/procedures and the school lay-out.  Teachers in the 9th grade academy start the school year with a suspended curriculum which highlights various aspects of WCHS, its traditions, and ways for students to become involved in school which culminates with a 9th Grade Pep Rally to celebrate their first week of high school and teach them how to behave a Pep Rally. 9th Grade Academy teachers also have come procedures and policies.  Students are permitted to retake assessments in order to master content and are assigned academic lunch when they don't complete/turn in assignments reinforcing the completion assignments. WCHS hosts a College Night and brings various colleges and universities to campus to meet with students and families about post-secondary educational opportunities.  Students also attend field trips to colleges, univiersities and trade schools.  Students also have the ability to take college level classes (Advanced Placement and Dual Enrollment) at WCHS in order to expose them to more rigorous coursework in preparation for post-secondary education.  "]
[4,"College and Career Awareness \nPasco Schools require this for all schools."]
[" ","Describe the strategies the school uses to advance college and career awareness, which may include establishing partnerships with business, industry or community organizations; integrating technical education with academic courses; and/or adding industry certification opportunities."]
[null,"WCHS hosts College Fair in the evening where all Pasco County students (even students who do not attend our school) are able to come and meet with multiple college advisors from schools all over the country.  We also bring in college advisors and military representatives to come talk to our students during lunches to provide them with information about their institutions.  Students who enter our Automotive Academy program as freshmen and complete the senior year in the auto block have the ability to earn certification.  We partner with local auto businesses, which has allowed our students to earn jobs in the auto industry. Students in the Academy of Digital Video Production also have opportunities to earn certification upon completion of the coursework."]
[5,"Safe and Inclusive Schools\nPasco Schools require this for all schools.\nDescribe the actions planned to create a safe and inclusive environment in the school including bullying prevention strategies, if not already included in the goal sections. If actions are included in the goal sections, list the goal in which actions are included.(Consider Together We Stand discussions and planning, student leadership team input, and communication with staff and students)."]
[null,"Selected students and staff attend the Together We Stand conference every summer and generate plans for the upcoming school year. Students attend Code of Conduct mini-sessions hosted by administration at the beginning of the school year to set the behavioral expectations for the school year which includes bullying prevention strategies. The Student Government Association officers are invited to a quarterly luncheon with the principal to discuss potential concerns or issues. Staff are trained in the crisis plan every year to ensure proper procedures are followed."]
[6,"Best Practices for Inclusive Education (BPIE) \nPasco Schools require this for all schools.\nDescribe the actions planned that address priority needs identified as a result of the Best Practices for Inclusive Education (BPIE) Assessment, if the actions are not already included in a goal section. If included in a goal section, list the goal in which the actions are included."]
[null,"WCHS will increase the ESE student graduation rate. Support Facilitator Teachers will collect data on their students on their case load to determine targets of support. The PLC will meet weekly to discuss interventions. The school ESE leadership team will analyze data quarterly to monitor and evaluate how ESE students are progressing. SWDs receive education in a general education setting that reflects natural proportions and age-appropriate, heterogeneous groups in core academic and elective or special areas within the school community."]
[7,"Dropout Prevention and Academic Intervention \n"]
[null,"This section is required for any school with a dropout prevention and academic intervention program, per Section 1003.53, F.S."]
[" ","Does the school have a program (for example: SSAP)? If yes, describe the program."]
[null,"Yes, our school counselors and Graduation Enhancement Coaches will meet with all 12th, 11th, and 10th grade students during the first semester to go over each individual student's academic standing.  School Counselors will provide students with their ACE reports and have goal sheets for all 12th, 11th, and 10th grade students to complete.  The ACE reports and goal sheets that are created by the students will be mailed home for parents/guardians to review, which in turn will increase communication between school counselors and parents/guardians.  This process will be repeated during second semester and will include 9th grade students as they will have a GPA after first semester is completed. We have an APEX lab where students are enrolled in PCSD and within that class they are enrolled in courses they failed in order to make the course up for credit and improve his/her GPA.  WCHS created a CLAW program for students who need extra assistance during the school day.  In addition, our GEP coaches have a minimum of 100 students on his/her caseload that he/she meets with in order to enusre that the student is doing what he/she needs to in order to graduate on time wiht his/her cohort.  WCHS also created at-risk Academic Advising periods for 12th, 11th, and 10th grade students where they have a GEP coach who will monitor their grades weekly and allow them to work on assignments during that time.  "]
[8,"Academic Enriched, Innovative Programs \nThis section is required for any school with academic enriched, innovative programs."]
[" ","Does the school have any academic enriched, innovative programs? (for example: AVID, Cambridge, IB, AP, etc) If yes, describe the program."]
[null,"WCHS has an iCat Advanced Scholars program which provides enriched coursework through Advanced Placement classes. The distinction between the iCat Advanced Scholars program and other AP classes is the use of iPads within the courses. This provides 21st technology-based learning to students in conjunction with the potential to earn college credit in numerous Advanced Placement courses. WCHS iCat Advanced Scholars program teachers are trained in instructional best practices for utilizing the iPad in the classroom. WCHS is also an AP Capstone school. AP Capstone is built on the foundation of two courses — AP Seminar and AP Research — and is designed to complement and enhance the in-depth, discipline-specific study provided through AP courses. It cultivates curious, independent, and collaborative scholars and prepares them to make logical, evidence-based decisions."]
[]
[null,"For High Schools only:"]
[9,"Describe strategies for improving student readiness for the public postsecondary level based on annual analysis of the High School Feedback Report (which is maintained by the Department of Education , per Section 1008.37 (4), F. S.)"]
[null,"We offer Math for College Readiness and English for College Readiness to 12th grade students in need of Math or English credit, but not prepared for the rigor of upper level English or Mathetatics.  This class serves as a bridge between high school and college English and Mathematics.  We also give the PERT test  on campus so students will know where their level of understanding is within the different subjects.  "]

{"sheet":"checklist","index":8,"n_rows":28,"n_cols":3,"rows_kept":28,"cut":false,"hidden":false,"merged":[[27,1,27,9],[26,1,26,9],[18,1,18,6],[19,2,19,9],[20,2,20,9],[21,2,21,9],[22,1,22,9],[23,1,23,9],[3,0,3,2],[4,1,4,9],[5,1,5,9],[7,0,7,1],[0,0,0,9],[8,1,8,9],[9,1,9,9],[10,1,10,9],[14,2,14,9],[16,1,16,9],[11,1,11,9],[12,2,12,9],[13,2,13,9],[15,1,15,9]]}
["Checklist Section"]
["Check for Yes to certify each of the required elements listed below are included in your Success Plan."]
[]
["High Schools only"]
[null,"Include strategies to address significant graduation rate gaps of one or more student subgroups when compared to the state's graduation rate. Section 1001.42, F. S. (Powers and duties of district school board)"]
[null,"High schools must develop strategies to improve student readiness for the public postsecondary level based on annual analysis of the feedback report data.[(4)].Section 1008.37, F. S. (Postsecondary feedback of information to high schools)  "]
[]
["All Schools"]
[" ","Student performance data were used in developing objectives of the school improvement plan (Pasco County Schools Success Plan).  Section 1008.22, F. S. (Student assessment program for public schools)   "]
[null,"The School Advisory Council membership composition is in compliance and assisted in the preparation and evaluation of the school improvement plan (Pasco County Schools Success Plan) required pursuant to s. 1001.42(18).  Section 1001.452, F. S. (District and school advisory councils)  "]
[null,"The Principal provided leadership in the development, revision, and implementation of the School Improvement Plan (Pasco County Schools Success Plan). Section 1001.32, F. S.; Section 1001.54, F. S."]
[null,"The school improvement plan (Pasco County Schools Success Plan) was developed collaboratively and focused on "]
[null,"*","enhanced, differentiated, standards-based instructional strategies to engage students, "]
[null,"*","increased opportunities for professional collaboration among and between teachers and all students, and "]
[null,"*","increased opportunities for professional collaboration among and between teachers, guidance counselors, instructional leaders, postsecondary educators engaged in pre-service training for new teachers, and the workforce community.  Section 1012.98, F. S. (School Community Professional Development Act)"]
[null,"The Best Practices for Inclusive Education (BPIE) Assessment was completed and priority needs were identified. Identified actions are included either in the goal section or the narrative section of the Success Plan."]
[null,"School leaders generated a focus on student and professional learning in the school that is clearly linked to the system-wide strategic objectives and the school improvement plan (Pasco County Schools Success Plan).  Rule 6A-5.080, F.A.C. (Florida Principal Leadership Standards)"]
["Conditional"]
[null,"If the school has any of these conditions:"]
[null,"*","a significant achievement gap of one or more student subgroups "]
[null,"*","a lower graduation rate for a subgroup compared to state’s graduation  rate  "]
[null,"*","has not significantly decreased percentage of students scoring below satisfactory on statewide assessment "]
[null,"strategies are included to address the above existing conditions. Section 1001.42, F. S. (Powers and duties of district school board)       "]
[null,"Each school that establishes a dropout prevention and academic intervention program at that school site must reflect the program in its school improvement plan (Pasco County Schools Success Plan). Section 1006.53, F. S. (Dropout prevention and academic intervention) "]
[]
["Electronic Signature"]
[null,"Your electronic Signature (The UserID you used to login to this site and your Employee ID) This certifies that all checked requirements are included in the School Improvement Plan (Pasco County Schools Success Plan) for your school."]
[null," "]

{"sheet":"executive summary","index":9,"n_rows":37,"n_cols":3,"rows_kept":37,"cut":false,"hidden":false,"merged":[[22,0,22,5],[32,1,32,5],[33,1,33,5],[23,0,23,5],[25,1,25,5],[26,1,26,5],[27,1,27,5],[28,1,28,5],[29,1,29,5],[31,1,31,5],[17,1,17,5],[18,1,18,5],[19,1,19,5],[20,1,20,5],[21,1,21,5],[0,0,0,5],[2,1,2,5],[3,1,3,5],[9,1,9,5],[10,1,10,5],[1,0,1,5],[15,0,15,5],[12,1,12,5],[13,1,13,5],[5,2,5,5],[6,0,6,5],[14,0,14,5],[11,1,11,5],[5,0,5,1],[7,0,7,5]]}
[{"$f":"'Goal 1'!$D$3","v":"Wesley Chapel High School"}]
["2016-17 Pasco County Schools Success Plan Executive Summary"]
["The vision:",{"$f":"'narrative sections'!$B$2","v":" All our students achieving success in college, career, and life"}]
["The mission:",{"$f":"'narrative sections'!$B$3","v":"To lead and encourage students to be life ready, strong in character, and to aspire to  meet high expectations, while generating college and career ready graduates who are able to think and learn independently"}]
[]
[{"$f":"'Goal 1'!$D$3","v":"Wesley Chapel High School"},null,"has the following goal(s) and targets:"]
["Goal 1:"]
[{"$f":"'Goal 1'!$B$5","v":"By the conclusion of the 2017-2018 School Year 70% of instructional staff will demonstrate evidence that they are planning, delivering, assessing, and monitoring standards based instruction matched to the rigor of the standards. "}]
[null,"Targets for Goal 1:"]
[null,{"$f":"'Goal 1'!$D$8","v":"By June of 2018, 58 % of students will have earned a proficient score on the Algebra 1 EOC."}]
[null,{"$f":"'Goal 1'!$D$9","v":"By June of 2018, 83% of students will have earned a proficient score on the Geometry EOC."}]
[null,{"$f":"'Goal 1'!$D$10","v":"By June of 2018, 42% of students will have earned a proficient score on the Algebra 2 EOC."}]
[null,{"$f":"'Goal 1'!$D$11","v":"By June of 2018, 67% of students will have earned a proficient score on the Biology EOC."}]
[null,{"$f":"'Goal 1'!#REF!","v":{"$error":"#REF!"}}]
["Goal 2:"]
[{"$f":"'Goal 2'!$B$5","v":"  By the conclusion of the 2017-2018 school year 50% of staff will be engaged and Student Hope will be at 40%, and Engagement 33% "}]
[null,"Targets for Goal 2:"]
[null,{"$f":"'Goal 2'!D8","v":"By June of 2018, 65% of students will be connected to at least one teacher on the WCHS campus and other students on the WCHS campus."}]
[null,{"$f":"'Goal 2'!D9","v":"By June of 2018, 40% of students will have hope as defined by the Gallup Poll."}]
[null,{"$f":"'Goal 2'!D10","v":"By June of 2018, 33% of students will be engaged as defined by the Gallup Poll."}]
[null,{"$f":"'Goal 2'!D11","v":"By June of 2018, 50% of staff will be engaged as defined by the Gallup Poll. "}]
[null,{"$f":"'Goal 2'!D12","v":0}]
["Goal 3:"]
[{"$f":"'Goal 3'!$B$5","v":"  By the conclusion of the 2017-2018 school year WCHS will implement Grade-Level Targeted Outcomes and tiered supports for all grade levels based on Project 10 Data. "}]
[null,"Targets for Goal 3:"]
[null,{"$f":"'Goal 3'!D8","v":"By June of 2018, 30% of students who are identified as At-Risk based on any EWS indicator will move to On-track, based on Project 10 Data."}]
[null,{"$f":"'Goal 3'!D9","v":"By June of 2018, 30% of students who are identified as Off-track based on any EWS indicator will move to At-Risk or On-track, based on Project 10 Data."}]
[null,{"$f":"'Goal 3'!D10","v":0}]
[null,{"$f":"'Goal 3'!D11","v":0}]
[null,{"$f":"'Goal 3'!D12","v":0}]
["Some strategies included in this plan are:"]
[" ",{"$f":"'Goal 1'!$F$24","v":"Utilize the Core Action Guide to determine the level of rigor in classrooms"}]
[{"$f":"'[1]goal 1'!B18","v":" "},{"$f":"'Goal 2'!$F$22","v":0}]
[null,{"$f":"'Goal 3'!$F$21","v":"Monitor student progress utilizing Academic Advising Periods and monitor using protocols "}]
[]
["For the detailed Success Plan for ",{"$f":"'Goal 1'!$D$3","v":"Wesley Chapel High School"},", please visit Pasco County School's website at"]
["http://pascostar.pasco.k12.fl.us"]